{"text_format":"1","workbook":"xlsx","n_sheets":2,"sheets":["svod","Лист1"],"not_rendered":{"charts":0,"images":0,"macros":1,"external_links":1,"defined_names":0,"comments":0,"pivot_tables":0},"unopened":[],"bounds":{"document_bytes":16777216,"sheet_cells":100000,"rows_first":2000,"rows_last":500,"rows_between":2000,"halvings":0,"cell_chars":16384,"cell_head_chars":4096},"cells_cut":0,"cells_raw":0,"read":"whole","date_system":"1900"}

{"sheet":"svod","index":0,"n_rows":16,"n_cols":35,"rows_kept":16,"cut":false,"hidden":false,"merged":[]}
[]
[null,null,"После подтяжки отсортировать по номеру всп!!!",null,null,null,null,null,null,null,null,null,null,"переформат","да"]
[null,null,"Проверку кол-ва КМ делаем из: 1).1.25; 2).произвольный отчет; 3).рейтинги + обратные проверки",null,null,null,null,null,null,null,null,null,null,"1-ый месяц","нет"]
[]
[null,null,null,null,null,null,null,null,null,null,null,null,null,null,null,null,null,null,null,null,"с 25 по 24 число, согласованный отчет"]
["Рейтинг, портал",null,"Рейтинг, портал",null,null,"КЗ, обработка","КЗ, обработка",1.25,"КЗ","КЗ, обработка",null,"Конвертер",1.25,"Справочник, Света Киселева","Запрос","Справочник, портал","Табель","Отчет2","Отчет управляющей кампании",1.25,"реестр","формула","формула","Ручные данные+проверка ИБСО","Ручные данные+проверка ОПИКИс","норматив","Саша Т.","норматив"]
[null,null,"\"C16\"",null,null,"\"Е16\"","\"F16\""]
["Код КМ",null,"ФИО",null,null,"Табельный номер","Должностной оклад","Дата создания подразделения","Фактически отработанное время","ВСП","ВСП справ НСИ","Управление","Адрес","Переформат/1 месяц в должности","ПИФ (да/нет)","Нормативный коэффициент премирования","Обучение","Итого прирост","ПИФ","Тарифный план","ИСЖ/НСЖ","месяцев действия точки МВС","Зона","Потреб.кредиты","Одобренные заявки на ЖК/ПК под залог недвижимости","Кнорм","ДСЖ","Стоимость 1 УП МП"]
["4290420026401",null,"Павлинова Кристина Евгеньевна",null,null,"4201062076",23500,{"$f":"VLOOKUP([1]!Таблица1[[#This Row],[ФИО]],'[1]1.25'!A:I,5,FALSE)","v":{"$error":"#REF!"}},120,"9042/0026",{"$f":"CONCATENATE(\"042_9042_0\",AC9)","v":{"$error":"#REF!"}},"1).Городское Управление",{"$f":"VLOOKUP([1]!Таблица1[[#This Row],[ФИО]],'[1]1.25'!A:I,4,FALSE)","v":{"$error":"#REF!"}},null,"да",{"$f":"[1]!Таблица1[[#This Row],[Кнорм]]","v":{"$error":"#REF!"}},44,{"$f":"VLOOKUP((VALUE([1]!Таблица1[[#This Row],[Код КМ]])),[1]отчет2!I:J,2,FALSE)/1000000","v":{"$error":"#REF!"}},{"$f":"IFERROR(VLOOKUP([1]!Таблица1[[#This Row],[ФИО]],[1]ПИФ!L:N,3,FALSE),0)/1000","v":0},{"$f":"IFERROR(VLOOKUP(VALUE([1]!Таблица1[[#This Row],[Код КМ]]),[1]ТП!D:F,3,FALSE),0)","v":0},{"$f":"IFERROR(VLOOKUP([1]!Таблица1[[#This Row],[ФИО]],[1]исж!D:E,2,FALSE),0)/1000","v":0},{"$f":"IF(ROUNDUP((TODAY()-[1]!Таблица1[Дата создания подразделения])/30,0)>5,\"6 и более\",ROUNDUP((TODAY()-[1]!Таблица1[Дата создания подразделения])/30,0))","v":{"$error":"#REF!"}},{"$f":"IF([1]!Таблица1[[#This Row],[Управление]]=\"1).Городское Управление\",1,2)","v":{"$error":"#REF!"}},null,null,{"$f":"VLOOKUP([1]!Таблица1[[#This Row],[ВСП]],[1]Кнорм!A:M,13,FALSE)","v":{"$error":"#REF!"}},{"$f":"IFERROR(VLOOKUP([1]!Таблица1[[#This Row],[ФИО]],[1]дсж!E:G,3,FALSE),0)","v":0},{"$f":"VLOOKUP([1]!Таблица1[[#This Row],[ВСП]],[1]Кнорм!A:H,8,FALSE)","v":{"$error":"#REF!"}},{"$f":"VALUE(RIGHT([1]!Таблица1[[#This Row],[ВСП]],4))","v":{"$error":"#REF!"}},74,{"$f":"[1]!Таблица1[[#This Row],[ПИФ]]","v":{"$error":"#REF!"}},{"$f":"[1]!Таблица1[[#This Row],[ФИО]]&[1]!Таблица1[[#This Row],[ВСП]]","v":{"$error":"#REF!"}},null,null,{"$f":"CONCATENATE(LEFT(\"42000000\",10-LEN([1]!Таблица1[[#This Row],[Табельный номер]])),[1]!Таблица1[[#This Row],[Табельный номер]])","v":{"$error":"#REF!"}}]
["4290420026402",null,"Солдатова Инна Сергеевна",null,null,"4200320073",28000,{"$f":"VLOOKUP([1]!Таблица1[[#This Row],[ФИО]],'[1]1.25'!A:I,5,FALSE)","v":{"$error":"#REF!"}},40,"9042/0026",{"$error":"#REF!"},"1).Городское Управление",{"$f":"VLOOKUP([1]!Таблица1[[#This Row],[ФИО]],'[1]1.25'!A:I,4,FALSE)","v":{"$error":"#REF!"}},null,"да",{"$f":"[1]!Таблица1[[#This Row],[Кнорм]]","v":{"$error":"#REF!"}},{"$f":"4","v":4},{"$f":"VLOOKUP((VALUE([1]!Таблица1[[#This Row],[Код КМ]])),[1]отчет2!I:J,2,FALSE)/1000000","v":{"$error":"#REF!"}},{"$f":"IFERROR(VLOOKUP([1]!Таблица1[[#This Row],[ФИО]],[1]ПИФ!L:N,3,FALSE),0)/1000","v":0},{"$f":"IFERROR(VLOOKUP(VALUE([1]!Таблица1[[#This Row],[Код КМ]]),[1]ТП!D:F,3,FALSE),0)","v":0},{"$f":"IFERROR(VLOOKUP([1]!Таблица1[[#This Row],[ФИО]],[1]исж!D:E,2,FALSE),0)/1000","v":0},{"$f":"IF(ROUNDUP((TODAY()-[1]!Таблица1[Дата создания подразделения])/30,0)>5,\"6 и более\",ROUNDUP((TODAY()-[1]!Таблица1[Дата создания подразделения])/30,0))","v":{"$error":"#REF!"}},{"$f":"IF([1]!Таблица1[[#This Row],[Управление]]=\"1).Городское Управление\",1,2)","v":{"$error":"#REF!"}},null,null,{"$f":"VLOOKUP([1]!Таблица1[[#This Row],[ВСП]],[1]Кнорм!A:M,13,FALSE)","v":{"$error":"#REF!"}},{"$f":"IFERROR(VLOOKUP([1]!Таблица1[[#This Row],[ФИО]],[1]дсж!E:G,3,FALSE),0)","v":0},{"$f":"VLOOKUP([1]!Таблица1[[#This Row],[ВСП]],[1]Кнорм!A:H,8,FALSE)","v":{"$error":"#REF!"}},{"$f":"VALUE(RIGHT([1]!Таблица1[[#This Row],[ВСП]],4))","v":{"$error":"#REF!"}},130,{"$f":"[1]!Таблица1[[#This Row],[ПИФ]]","v":{"$error":"#REF!"}},{"$f":"[1]!Таблица1[[#This Row],[ФИО]]&[1]!Таблица1[[#This Row],[ВСП]]","v":{"$error":"#REF!"}},null,null,{"$f":"CONCATENATE(LEFT(\"42000000\",10-LEN([1]!Таблица1[[#This Row],[Табельный номер]])),[1]!Таблица1[[#This Row],[Табельный номер]])","v":{"$error":"#REF!"}}]
["4290420029402",null,"Маркина Евгения Владимировна",null,null,"4200821605",24000,{"$f":"VLOOKUP([1]!Таблица1[[#This Row],[ФИО]],'[1]1.25'!A:I,5,FALSE)","v":{"$error":"#REF!"}},120,"9042/0029",{"$error":"#REF!"},"1).Городское Управление",{"$f":"VLOOKUP([1]!Таблица1[[#This Row],[ФИО]],'[1]1.25'!A:I,4,FALSE)","v":{"$error":"#REF!"}},null,"да",{"$f":"[1]!Таблица1[[#This Row],[Кнорм]]","v":{"$error":"#REF!"}},44,{"$f":"VLOOKUP((VALUE([1]!Таблица1[[#This Row],[Код КМ]])),[1]отчет2!I:J,2,FALSE)/1000000","v":{"$error":"#REF!"}},{"$f":"IFERROR(VLOOKUP([1]!Таблица1[[#This Row],[ФИО]],[1]ПИФ!L:N,3,FALSE),0)/1000","v":0},{"$f":"IFERROR(VLOOKUP(VALUE([1]!Таблица1[[#This Row],[Код КМ]]),[1]ТП!D:F,3,FALSE),0)","v":0},{"$f":"IFERROR(VLOOKUP([1]!Таблица1[[#This Row],[ФИО]],[1]исж!D:E,2,FALSE),0)/1000","v":0},{"$f":"IF(ROUNDUP((TODAY()-[1]!Таблица1[Дата создания подразделения])/30,0)>5,\"6 и более\",ROUNDUP((TODAY()-[1]!Таблица1[Дата создания подразделения])/30,0))","v":{"$error":"#REF!"}},{"$f":"IF([1]!Таблица1[[#This Row],[Управление]]=\"1).Городское Управление\",1,2)","v":{"$error":"#REF!"}},null,null,{"$f":"VLOOKUP([1]!Таблица1[[#This Row],[ВСП]],[1]Кнорм!A:M,13,FALSE)","v":{"$error":"#REF!"}},{"$f":"IFERROR(VLOOKUP([1]!Таблица1[[#This Row],[ФИО]],[1]дсж!E:G,3,FALSE),0)","v":0},{"$f":"VLOOKUP([1]!Таблица1[[#This Row],[ВСП]],[1]Кнорм!A:H,8,FALSE)","v":{"$error":"#REF!"}},{"$f":"VALUE(RIGHT([1]!Таблица1[[#This Row],[ВСП]],4))","v":{"$error":"#REF!"}},0,{"$f":"[1]!Таблица1[[#This Row],[ПИФ]]","v":{"$error":"#REF!"}},{"$f":"[1]!Таблица1[[#This Row],[ФИО]]&[1]!Таблица1[[#This Row],[ВСП]]","v":{"$error":"#REF!"}},null,null,{"$f":"CONCATENATE(LEFT(\"42000000\",10-LEN([1]!Таблица1[[#This Row],[Табельный номер]])),[1]!Таблица1[[#This Row],[Табельный номер]])","v":{"$error":"#REF!"}}]
["4290420030401",null,"Кочнева Елена Вячеславовна",null,null,"4201094591",23000,{"$f":"VLOOKUP([1]!Таблица1[[#This Row],[ФИО]],'[1]1.25'!A:I,5,FALSE)","v":{"$error":"#REF!"}},120,"9042/0030",{"$error":"#REF!"},"1).Городское Управление",{"$f":"VLOOKUP([1]!Таблица1[[#This Row],[ФИО]],'[1]1.25'!A:I,4,FALSE)","v":{"$error":"#REF!"}},null,"да",{"$f":"[1]!Таблица1[[#This Row],[Кнорм]]","v":{"$error":"#REF!"}},12,{"$f":"VLOOKUP((VALUE([1]!Таблица1[[#This Row],[Код КМ]])),[1]отчет2!I:J,2,FALSE)/1000000","v":{"$error":"#REF!"}},{"$f":"IFERROR(VLOOKUP([1]!Таблица1[[#This Row],[ФИО]],[1]ПИФ!L:N,3,FALSE),0)/1000","v":0},{"$f":"IFERROR(VLOOKUP(VALUE([1]!Таблица1[[#This Row],[Код КМ]]),[1]ТП!D:F,3,FALSE),0)","v":0},{"$f":"IFERROR(VLOOKUP([1]!Таблица1[[#This Row],[ФИО]],[1]исж!D:E,2,FALSE),0)/1000","v":0},{"$f":"IF(ROUNDUP((TODAY()-[1]!Таблица1[Дата создания подразделения])/30,0)>5,\"6 и более\",ROUNDUP((TODAY()-[1]!Таблица1[Дата создания подразделения])/30,0))","v":{"$error":"#REF!"}},{"$f":"IF([1]!Таблица1[[#This Row],[Управление]]=\"1).Городское Управление\",1,2)","v":{"$error":"#REF!"}},null,null,{"$f":"VLOOKUP([1]!Таблица1[[#This Row],[ВСП]],[1]Кнорм!A:M,13,FALSE)","v":{"$error":"#REF!"}},{"$f":"IFERROR(VLOOKUP([1]!Таблица1[[#This Row],[ФИО]],[1]дсж!E:G,3,FALSE),0)","v":0},{"$f":"VLOOKUP([1]!Таблица1[[#This Row],[ВСП]],[1]Кнорм!A:H,8,FALSE)","v":{"$error":"#REF!"}},{"$f":"VALUE(RIGHT([1]!Таблица1[[#This Row],[ВСП]],4))","v":{"$error":"#REF!"}},0,{"$f":"[1]!Таблица1[[#This Row],[ПИФ]]","v":{"$error":"#REF!"}},{"$f":"[1]!Таблица1[[#This Row],[ФИО]]&[1]!Таблица1[[#This Row],[ВСП]]","v":{"$error":"#REF!"}},null,null,{"$f":"CONCATENATE(LEFT(\"42000000\",10-LEN([1]!Таблица1[[#This Row],[Табельный номер]])),[1]!Таблица1[[#This Row],[Табельный номер]])","v":{"$error":"#REF!"}}]
["4290420030402",null,"Соломенова Анастасия Геннадьевна",null,null,"4201081379",26000,{"$f":"VLOOKUP([1]!Таблица1[[#This Row],[ФИО]],'[1]1.25'!A:I,5,FALSE)","v":{"$error":"#REF!"}},72,"9042/0030",{"$error":"#REF!"},"1).Городское Управление",{"$f":"VLOOKUP([1]!Таблица1[[#This Row],[ФИО]],'[1]1.25'!A:I,4,FALSE)","v":{"$error":"#REF!"}},null,"да",{"$f":"[1]!Таблица1[[#This Row],[Кнорм]]","v":{"$error":"#REF!"}},36,{"$f":"VLOOKUP((VALUE([1]!Таблица1[[#This Row],[Код КМ]])),[1]отчет2!I:J,2,FALSE)/1000000","v":{"$error":"#REF!"}},{"$f":"IFERROR(VLOOKUP([1]!Таблица1[[#This Row],[ФИО]],[1]ПИФ!L:N,3,FALSE),0)/1000","v":0},{"$f":"IFERROR(VLOOKUP(VALUE([1]!Таблица1[[#This Row],[Код КМ]]),[1]ТП!D:F,3,FALSE),0)","v":0},{"$f":"IFERROR(VLOOKUP([1]!Таблица1[[#This Row],[ФИО]],[1]исж!D:E,2,FALSE),0)/1000","v":0},{"$f":"IF(ROUNDUP((TODAY()-[1]!Таблица1[Дата создания подразделения])/30,0)>5,\"6 и более\",ROUNDUP((TODAY()-[1]!Таблица1[Дата создания подразделения])/30,0))","v":{"$error":"#REF!"}},{"$f":"IF([1]!Таблица1[[#This Row],[Управление]]=\"1).Городское Управление\",1,2)","v":{"$error":"#REF!"}},null,null,{"$f":"VLOOKUP([1]!Таблица1[[#This Row],[ВСП]],[1]Кнорм!A:M,13,FALSE)","v":{"$error":"#REF!"}},{"$f":"IFERROR(VLOOKUP([1]!Таблица1[[#This Row],[ФИО]],[1]дсж!E:G,3,FALSE),0)","v":0},{"$f":"VLOOKUP([1]!Таблица1[[#This Row],[ВСП]],[1]Кнорм!A:H,8,FALSE)","v":{"$error":"#REF!"}},{"$f":"VALUE(RIGHT([1]!Таблица1[[#This Row],[ВСП]],4))","v":{"$error":"#REF!"}},0,{"$f":"[1]!Таблица1[[#This Row],[ПИФ]]","v":{"$error":"#REF!"}},{"$f":"[1]!Таблица1[[#This Row],[ФИО]]&[1]!Таблица1[[#This Row],[ВСП]]","v":{"$error":"#REF!"}},null,null,{"$f":"CONCATENATE(LEFT(\"42000000\",10-LEN([1]!Таблица1[[#This Row],[Табельный номер]])),[1]!Таблица1[[#This Row],[Табельный номер]])","v":{"$error":"#REF!"}}]
["4290420031401",null,"Тактаева Елена Сергеевна",null,null,"4200508655",28000,{"$f":"VLOOKUP([1]!Таблица1[[#This Row],[ФИО]],'[1]1.25'!A:I,5,FALSE)","v":{"$error":"#REF!"}},120,"9042/0031",{"$error":"#REF!"},"1).Городское Управление",{"$f":"VLOOKUP([1]!Таблица1[[#This Row],[ФИО]],'[1]1.25'!A:I,4,FALSE)","v":{"$error":"#REF!"}},null,"да",{"$f":"[1]!Таблица1[[#This Row],[Кнорм]]","v":{"$error":"#REF!"}},{"$f":"4","v":4},{"$f":"VLOOKUP((VALUE([1]!Таблица1[[#This Row],[Код КМ]])),[1]отчет2!I:J,2,FALSE)/1000000","v":{"$error":"#REF!"}},{"$f":"IFERROR(VLOOKUP([1]!Таблица1[[#This Row],[ФИО]],[1]ПИФ!L:N,3,FALSE),0)/1000","v":0},{"$f":"IFERROR(VLOOKUP(VALUE([1]!Таблица1[[#This Row],[Код КМ]]),[1]ТП!D:F,3,FALSE),0)","v":0},{"$f":"IFERROR(VLOOKUP([1]!Таблица1[[#This Row],[ФИО]],[1]исж!D:E,2,FALSE),0)/1000","v":0},{"$f":"IF(ROUNDUP((TODAY()-[1]!Таблица1[Дата создания подразделения])/30,0)>5,\"6 и более\",ROUNDUP((TODAY()-[1]!Таблица1[Дата создания подразделения])/30,0))","v":{"$error":"#REF!"}},{"$f":"IF([1]!Таблица1[[#This Row],[Управление]]=\"1).Городское Управление\",1,2)","v":{"$error":"#REF!"}},null,null,{"$f":"VLOOKUP([1]!Таблица1[[#This Row],[ВСП]],[1]Кнорм!A:M,13,FALSE)","v":{"$error":"#REF!"}},{"$f":"IFERROR(VLOOKUP([1]!Таблица1[[#This Row],[ФИО]],[1]дсж!E:G,3,FALSE),0)","v":0},{"$f":"VLOOKUP([1]!Таблица1[[#This Row],[ВСП]],[1]Кнорм!A:H,8,FALSE)","v":{"$error":"#REF!"}},{"$f":"VALUE(RIGHT([1]!Таблица1[[#This Row],[ВСП]],4))","v":{"$error":"#REF!"}},235,{"$f":"[1]!Таблица1[[#This Row],[ПИФ]]","v":{"$error":"#REF!"}},{"$f":"[1]!Таблица1[[#This Row],[ФИО]]&[1]!Таблица1[[#This Row],[ВСП]]","v":{"$error":"#REF!"}},null,null,{"$f":"CONCATENATE(LEFT(\"42000000\",10-LEN([1]!Таблица1[[#This Row],[Табельный номер]])),[1]!Таблица1[[#This Row],[Табельный номер]])","v":{"$error":"#REF!"}}]
["4290420032402",null,"Лаврентьева Елена Станиславовна",null,null,"4200850809",28100,{"$f":"VLOOKUP([1]!Таблица1[[#This Row],[ФИО]],'[1]1.25'!A:I,5,FALSE)","v":{"$error":"#REF!"}},120,"9042/0032",{"$error":"#REF!"},"1).Городское Управление",{"$f":"VLOOKUP([1]!Таблица1[[#This Row],[ФИО]],'[1]1.25'!A:I,4,FALSE)","v":{"$error":"#REF!"}},null,"да",{"$f":"[1]!Таблица1[[#This Row],[Кнорм]]","v":{"$error":"#REF!"}},44,{"$f":"VLOOKUP((VALUE([1]!Таблица1[[#This Row],[Код КМ]])),[1]отчет2!I:J,2,FALSE)/1000000","v":{"$error":"#REF!"}},{"$f":"IFERROR(VLOOKUP([1]!Таблица1[[#This Row],[ФИО]],[1]ПИФ!L:N,3,FALSE),0)/1000","v":0},{"$f":"IFERROR(VLOOKUP(VALUE([1]!Таблица1[[#This Row],[Код КМ]]),[1]ТП!D:F,3,FALSE),0)","v":0},{"$f":"IFERROR(VLOOKUP([1]!Таблица1[[#This Row],[ФИО]],[1]исж!D:E,2,FALSE),0)/1000","v":0},{"$f":"IF(ROUNDUP((TODAY()-[1]!Таблица1[Дата создания подразделения])/30,0)>5,\"6 и более\",ROUNDUP((TODAY()-[1]!Таблица1[Дата создания подразделения])/30,0))","v":{"$error":"#REF!"}},{"$f":"IF([1]!Таблица1[[#This Row],[Управление]]=\"1).Городское Управление\",1,2)","v":{"$error":"#REF!"}},null,1,{"$f":"VLOOKUP([1]!Таблица1[[#This Row],[ВСП]],[1]Кнорм!A:M,13,FALSE)","v":{"$error":"#REF!"}},{"$f":"IFERROR(VLOOKUP([1]!Таблица1[[#This Row],[ФИО]],[1]дсж!E:G,3,FALSE),0)","v":0},{"$f":"VLOOKUP([1]!Таблица1[[#This Row],[ВСП]],[1]Кнорм!A:H,8,FALSE)","v":{"$error":"#REF!"}},{"$f":"VALUE(RIGHT([1]!Таблица1[[#This Row],[ВСП]],4))","v":{"$error":"#REF!"}},30,{"$f":"[1]!Таблица1[[#This Row],[ПИФ]]","v":{"$error":"#REF!"}},{"$f":"[1]!Таблица1[[#This Row],[ФИО]]&[1]!Таблица1[[#This Row],[ВСП]]","v":{"$error":"#REF!"}},null,null,{"$f":"CONCATENATE(LEFT(\"42000000\",10-LEN([1]!Таблица1[[#This Row],[Табельный номер]])),[1]!Таблица1[[#This Row],[Табельный номер]])","v":{"$error":"#REF!"}}]
["4290420032401",null,"Юнгина Екатерина Олеговна",null,null,"4201117309",23000,{"$f":"VLOOKUP([1]!Таблица1[[#This Row],[ФИО]],'[1]1.25'!A:I,5,FALSE)","v":{"$error":"#REF!"}},39,"9042/0032",{"$error":"#REF!"},"1).Городское Управление",{"$f":"VLOOKUP([1]!Таблица1[[#This Row],[ФИО]],'[1]1.25'!A:I,4,FALSE)","v":{"$error":"#REF!"}},null,"да",{"$f":"[1]!Таблица1[[#This Row],[Кнорм]]","v":{"$error":"#REF!"}},36,{"$f":"VLOOKUP((VALUE([1]!Таблица1[[#This Row],[Код КМ]])),[1]отчет2!I:J,2,FALSE)/1000000","v":{"$error":"#REF!"}},{"$f":"IFERROR(VLOOKUP([1]!Таблица1[[#This Row],[ФИО]],[1]ПИФ!L:N,3,FALSE),0)/1000","v":0},{"$f":"IFERROR(VLOOKUP(VALUE([1]!Таблица1[[#This Row],[Код КМ]]),[1]ТП!D:F,3,FALSE),0)","v":0},{"$f":"IFERROR(VLOOKUP([1]!Таблица1[[#This Row],[ФИО]],[1]исж!D:E,2,FALSE),0)/1000","v":0},{"$f":"IF(ROUNDUP((TODAY()-[1]!Таблица1[Дата создания подразделения])/30,0)>5,\"6 и более\",ROUNDUP((TODAY()-[1]!Таблица1[Дата создания подразделения])/30,0))","v":{"$error":"#REF!"}},{"$f":"IF([1]!Таблица1[[#This Row],[Управление]]=\"1).Городское Управление\",1,2)","v":{"$error":"#REF!"}},null,null,{"$f":"VLOOKUP([1]!Таблица1[[#This Row],[ВСП]],[1]Кнорм!A:M,13,FALSE)","v":{"$error":"#REF!"}},{"$f":"IFERROR(VLOOKUP([1]!Таблица1[[#This Row],[ФИО]],[1]дсж!E:G,3,FALSE),0)","v":0},{"$f":"VLOOKUP([1]!Таблица1[[#This Row],[ВСП]],[1]Кнорм!A:H,8,FALSE)","v":{"$error":"#REF!"}},{"$f":"VALUE(RIGHT([1]!Таблица1[[#This Row],[ВСП]],4))","v":{"$error":"#REF!"}},0,{"$f":"[1]!Таблица1[[#This Row],[ПИФ]]","v":{"$error":"#REF!"}},{"$f":"[1]!Таблица1[[#This Row],[ФИО]]&[1]!Таблица1[[#This Row],[ВСП]]","v":{"$error":"#REF!"}},null,null,{"$f":"CONCATENATE(LEFT(\"42000000\",10-LEN([1]!Таблица1[[#This Row],[Табельный номер]])),[1]!Таблица1[[#This Row],[Табельный номер]])","v":{"$error":"#REF!"}}]

{"sheet":"Лист1","index":1,"n_rows":8,"n_cols":2,"rows_kept":8,"cut":false,"hidden":false,"merged":[]}
["Павлинова Кристина Евгеньевна",4201062076]
["Солдатова Инна Сергеевна",4200320073]
["Маркина Евгения Владимировна",4200821605]
["Кочнева Елена Вячеславовна",4201094591]
["Соломенова Анастасия Геннадьевна",4201081379]
["Тактаева Елена Сергеевна",4200508655]
["Лаврентьева Елена Станиславовна",4200850809]
["Юнгина Екатерина Олеговна",4201117309]